fUSD/lending_fUSD_20260405
["ID","MTS","AMOUNT","RATE_DAILY","PERIOD"]
[419781970,1775376651384,-150.0,0.000144,2]
[419781971,1775376651393,-150.0,0.000144,2]
[419781972,1775376651403,-150.05716299,0.000144,2]
[419781973,1775376651412,-150.0,0.000144,2]
[419781974,1775376651422,-150.0,0.000144,2]
[419781975,1775376651432,-1229.18,0.00014402,2]
[419781976,1775376651442,-1047.087,0.00014402,2]
[419781977,1775376651451,-415.0,0.00014402,2]
[419781978,1775376651461,-6020.0,0.00014402,2]
[419781979,1775376651470,-150.0,0.00014421,2]
[419781980,1775376651480,-150.0,0.00014426,2]
[419781981,1775376651489,-150.0,0.0001443,2]
[419781982,1775376651499,-150.0,0.0001443,2]
[419781983,1775376651508,-1000.0,0.0001443,7]
[419781984,1775376651518,-150.0,0.00014433,2]
[419781985,1775376651527,-150.0,0.00014443,2]
[419781986,1775376651537,-508.0,0.00014449,3]
[419781987,1775376651546,-150.0,0.00014452,2]
[419781988,1775376651555,-150.0,0.00014459,2]
[419781989,1775376651565,-150.0,0.00014459,2]
[419781990,1775376651574,-150.0,0.00014464,2]
[419781991,1775376651584,-150.0,0.00014465,2]
[419781992,1775376651593,-150.0,0.0001447,2]
[419781993,1775376651602,-12136.91,0.00014476,2]
[419781994,1775376651611,-150.0,0.00014477,2]
[419781995,1775376651621,-150.0,0.00014485,2]
[419781996,1775376651631,-150.0,0.00014489,2]
[419781997,1775376651641,-150.0,0.00014489,2]
[419781998,1775376651650,-150.0,0.00014489,2]
[419781999,1775376651660,-472.23,0.00014491,2]
[419782000,1775376651669,-150.0,0.00014498,2]
[419782001,1775376651678,-150.0,0.00014503,2]
[419782002,1775376651688,-500.0,0.00014504,2]
[419782003,1775376651697,-500.0,0.00014504,2]
[419782004,1775376651707,-500.0,0.00014504,2]
[419782005,1775376651716,-500.0,0.00014504,2]
[419782006,1775376651726,-500.0,0.00014504,2]
[419782007,1775376651735,-500.0,0.00014504,2]
[419782008,1775376651745,-500.0,0.00014504,2]
[419782009,1775376651754,-500.0,0.00014504,2]
[419782010,1775376651764,-500.0,0.00014504,2]
[419782011,1775376651773,-500.0,0.00014504,2]
[419782012,1775376651782,-500.0,0.00014504,2]
[419782013,1775376651791,-568.42076477,0.00014504,2]
[419782014,1775376651801,-9999.99,0.00014504,2]
[419782015,1775376651810,-29999.99,0.00014504,2]
[419782016,1775376651819,-18883.81,0.00014504,2]
[419782017,1775376651829,-150.0,0.00014507,2]
[419782018,1775376651838,-150.0,0.00014519,2]
[419782019,1775376651847,-150.0,0.00014519,2]
[419782020,1775376651857,-368.07161935,0.00014527,2]
[419782021,1775376651866,-200.0,0.00014527,2]
[419782022,1775376651876,-1536.04360649,0.00014527,2]
[419782023,1775376651885,-187.78006525,0.00014527,2]
[419782024,1775376651894,-799.54513345,0.00014527,2]
[419782025,1775376651904,-200.0,0.00014527,2]
[419782026,1775376651913,-745.65223616,0.00014527,2]
[419782027,1775376651923,-301.00069851,0.00014527,2]
[419782028,1775376651934,-150.0,0.00014528,2]
[419782029,1775376651944,-150.0,0.00014529,2]
[419782030,1775376651955,-150.0,0.00014531,2]
[419782031,1775376651965,-150.0,0.00014539,2]
[419782032,1775376651974,-150.0,0.00014548,2]
[419782033,1775376651984,-150.0,0.00014548,2]
[419782034,1775376651993,-150.0,0.00014549,2]
[419782035,1775376652003,-150.0,0.00014555,2]
[419782036,1775376652012,-163.01545322,0.00014562,2]
[419782037,1775376652022,-150.0,0.00014563,2]
[419782038,1775376652031,-150.0,0.00014571,2]
[419782039,1775376652042,-150.0,0.00014578,2]
[419782040,1775376652053,-150.0,0.00014578,2]
[419782041,1775376652063,-150.0,0.00014578,2]
[419782042,1775376652072,-150.0,0.00014581,2]
[419782043,1775376652083,-150.0,0.00014592,2]
[419782044,1775376652093,-150.0,0.00014596,2]
[419782045,1775376652105,-150.0,0.00014606,2]
[419782046,1775376652115,-150.0,0.00014607,2]
[419782047,1775376652127,-150.0,0.00014607,2]
[419782048,1775376652136,-150.0,0.00014609,2]
[419782049,1775376652145,-150.0,0.00014613,2]
[419782050,1775376652158,-150.0,0.00014629,2]
[419782051,1775376652167,-1000.0,0.00014629,2]
[419782052,1775376652177,-150.0,0.00014632,2]
[419782053,1775376652186,-150.0,0.00014635,2]
[419782054,1775376652196,-209.39651742,0.00014637,2]
[419782055,1775376652205,-150.0,0.00014637,2]
[419782056,1775376652215,-150.0,0.00014637,2]
[419782057,1775376652225,-150.0,0.00014656,2]
[419782058,1775376652234,-150.0,0.00014658,2]
[419782059,1775376652244,-150.0,0.00014661,2]
[419782060,1775376652253,-150.0,0.00014667,2]
[419782061,1775376652263,-150.0,0.00014667,2]
[419782062,1775376652272,-150.0,0.00014667,2]
[419782063,1775376652282,-150.0,0.00014667,2]
[419782064,1775376652292,-150.0,0.00014677,2]
[419782065,1775376652301,-150.0,0.00014678,2]
[419782066,1775376652310,-150.0,0.00014684,2]
[419782067,1775376652320,-150.0,0.00014694,2]
[419782068,1775376652330,-150.0,0.00014696,2]
[419782069,1775376652339,-150.0,0.00014696,2]
[419782070,1775376652349,-150.0,0.00014699,2]
[419782071,1775376652358,-472.24311998,0.000147,2]
[419782072,1775376652369,-150.0,0.0001471,2]
[419782073,1775376652379,-150.0,0.0001472,2]
[419782074,1775376652388,-150.0,0.00014726,2]
[419782075,1775376652398,-150.0,0.00014726,2]
[419782076,1775376652407,-150.0,0.00014727,2]
[419782077,1775376652417,-150.0,0.00014735,2]
[419782078,1775376652427,-500.0,0.00014738,2]
[419782079,1775376652436,-519.03182682,0.00014738,2]
[419782080,1775376652446,-150.0,0.00014741,2]
[419782081,1775376652455,-150.0,0.00014748,2]
[419782082,1775376652465,-150.0,0.00014756,2]
[419782083,1775376652475,-150.0,0.00014756,2]
[419782084,1775376652485,-150.0,0.00014756,2]
[419782085,1775376652498,-150.0,0.00014759,2]
[419782086,1775376652508,-150.0,0.00014761,2]
[419782087,1775376652518,-150.0,0.00014763,2]
[419782088,1775376652528,-1000.0,0.00014765,2]
[419782089,1775376652538,-150.0,0.00014784,2]
[419782090,1775376652548,-1000.0,0.00014785,2]
[419782091,1775376652558,-150.0,0.00014785,2]
[419782092,1775376652567,-150.0,0.00014785,2]
[419782093,1775376652578,-150.0,0.00014787,2]
[419782094,1775376652589,-150.0,0.00014792,2]
[419782095,1775376652599,-1500.0,0.00014795,2]
[419782096,1775376652608,-1500.0,0.00014795,2]
[419782097,1775376652620,-1500.0,0.00014795,2]
[419782098,1775376652630,-1500.0,0.00014795,2]
[419782099,1775376652640,-1500.0,0.00014795,2]
[419782100,1775376652651,-1500.0,0.00014795,2]
[419782101,1775376652662,-1500.0,0.00014795,2]
[419782102,1775376652672,-1500.0,0.00014795,2]
[419782103,1775376652682,-1500.0,0.00014795,2]
[419782104,1775376652691,-1500.0,0.00014795,2]
[419782105,1775376652701,-1000.0,0.00014795,2]
[419782106,1775376652710,-1002.83538283,0.00014795,2]
[419782107,1775376652720,-1500.0,0.00014795,2]
[419782108,1775376652730,-1500.0,0.00014795,2]
[419782109,1775376652740,-1500.0,0.00014795,2]
[419782110,1775376652749,-1500.0,0.00014795,2]
[419782111,1775376652759,-418.3764967,0.00014795,2]
[419782112,1775376652770,-1500.0,0.00014795,2]
[419782113,1775376652780,-1500.0,0.00014795,2]
[419782114,1775376652789,-1500.0,0.00014795,2]
[419782115,1775376652799,-1500.0,0.00014795,2]
[419782116,1775376652809,-1500.0,0.00014795,2]
[419782117,1775376652818,-553.41835149,0.00014795,2]
[419782118,1775376652828,-150.0,0.000148,2]
[419782119,1775376652837,-150.0,0.00014805,2]
[419782120,1775376652846,-150.0,0.00014813,2]
[419782121,1775376652856,-150.0,0.00014815,2]
[419782122,1775376652866,-150.0,0.00014815,2]
[419782123,1775376652875,-150.0,0.00014817,2]
[419782124,1775376652885,-150.0,0.00014824,2]
[419782125,1775376652894,-150.0,0.00014827,2]
[419782126,1775376652904,-150.0,0.00014839,2]
[419782127,1775376652914,-150.0,0.00014844,2]
[419782128,1775376652923,-150.0,0.00014844,2]
[419782129,1775376652933,-150.0,0.00014844,2]
[419782130,1775376652942,-150.0,0.00014848,2]
[419782131,1775376652952,-4212.59,0.00014853,2]
[419782132,1775376652961,-1998.54,0.00014853,2]
[419782133,1775376652971,-150.0,0.00014857,2]
[419782134,1775376652980,-150.0,0.00014865,2]
[419782135,1775376652989,-150.0,0.00014869,2]
[419782136,1775376652999,-150.0,0.00014874,2]
[419782137,1775376653008,-150.0,0.00014874,2]
[419782138,1775376653018,-150.0,0.00014887,2]
[419782139,1775376653027,-150.0,0.0001489,2]
[419782140,1775376653037,-150.0,0.0001489,2]
[419782141,1775376653046,-150.0,0.00014891,2]
[419782142,1775376653056,-164.79711181,0.000149,2]
[419782143,1775376653065,-811.94017057,0.000149,2]
[419782144,1775376653075,-150.0,0.00014904,2]
[419782145,1775376653085,-150.0,0.00014904,2]
[419782146,1775376653095,-3000.0,0.00014904,2]
[419782147,1775376653105,-289.56339563,0.00014908,2]
[419782148,1775376653114,-150.0,0.00014912,2]
[419782149,1775376653124,-150.0,0.00014916,2]
[419782150,1775376653134,-150.0,0.00014922,2]
[419782151,1775376653143,-38258.22545168,0.00014926,2]
[419782152,1775376653153,-150.0,0.00014933,2]
[419782153,1775376653162,-150.0,0.00014933,2]
[419782154,1775376653172,-150.0,0.00014933,2]
[419782155,1775376653181,-150.0,0.00014933,2]
[419782156,1775376653191,-150.0,0.00014933,2]
[419782157,1775376653200,-150.0,0.00014942,2]
[419782158,1775376653209,-150.0,0.00014955,2]
[419782159,1775376653219,-150.0,0.00014955,2]
[419782160,1775376653228,-150.0,0.00014957,2]
[419782161,1775376653238,-8422.99193755,0.00014962,2]
[419782162,1775376653247,-150.0,0.00014963,2]
[419782163,1775376653257,-150.0,0.00014963,2]
[419782164,1775376653267,-150.0,0.00014968,2]
[419782165,1775376653277,-150.0,0.00014976,2]
[419782166,1775376653287,-5456.18338249,0.00014986,2]
[419782167,1775376653297,-150.0,0.00014988,2]
[419782168,1775376653307,-150.0,0.00014993,2]
[419782169,1775376653612,-150.0,0.00014993,2]
[419782170,1775376653622,-150.0,0.00014994,2]
[419782171,1775376653632,-150.0,0.00014997,2]
[419782172,1775376653641,-788.29024,0.00015,2]
[419782173,1775376653651,-300.0,0.00015,2]
[419782174,1775376653660,-2067.27601646,0.00015,2]
[419782175,1775376653670,-8047.93487487,0.00015,2]
[419782176,1775376653680,-223458.98806615,0.00015,7]
[419782177,1775376653689,-488.611803,0.00015,2]
[419782178,1775376653699,-488.611803,0.00015,2]
[419782179,1775376653708,-488.611803,0.00015,2]
[419782180,1775376653717,-488.611803,0.00015,2]
[419782181,1775376653727,-1000.0,0.00015003,2]
[419782182,1775376653736,-1000.0,0.00015004,2]
[419782183,1775376653745,-500.0,0.00015015,2]
[419782184,1775376653754,-2000.0,0.00015015,2]
[419782185,1775376653763,-150.0,0.00015019,2]
[419782186,1775376653772,-150.0,0.00015019,2]
[419782187,1775376653783,-150.0,0.0001502,2]
[419782188,1775376653793,-150.0,0.00015022,2]
[419782189,1775376653804,-150.0,0.00015022,2]
[419782190,1775376653815,-150.0,0.00015022,2]
[419782191,1775376653825,-150.0,0.00015026,2]
[419782192,1775376653834,-314.13,0.00015029,2]
[419782193,1775376653844,-150.0,0.0001504,2]
[419782194,1775376653854,-200.0,0.00015043,2]
[419782195,1775376653864,-273.0,0.00015043,2]
[419782196,1775376653874,-217.0,0.00015043,2]
[419782197,1775376653883,-150.0,0.00015043,2]
[419782198,1775376653892,-250.0,0.00015043,2]
[419782199,1775376653904,-224.902,0.00015043,2]
[419782200,1775376653912,-238.347,0.00015043,2]
[419782201,1775376653922,-250.0,0.00015043,2]
[419782202,1775376653931,-162.919,0.00015043,2]
[419782203,1775376653940,-250.0,0.00015043,2]
[419782204,1775376653949,-163.913,0.00015043,2]
[419782205,1775376653958,-1347.0,0.00015043,2]
[419782206,1775376653968,-3637.957,0.00015043,2]
[419782207,1775376653977,-626.724,0.00015043,2]
[419782208,1775376653986,-150.0,0.00015045,2]
[419782209,1775376653995,-150.0,0.00015052,2]
[419782210,1775376654004,-150.0,0.00015052,2]
[419782211,1775376654014,-150.0,0.00015053,2]
[419782212,1775376654023,-150.0,0.00015061,2]
[419782213,1775376654032,-485.0,0.00015065,2]
[419782214,1775376654042,-672.962147,0.00015068,2]
[419782215,1775376654051,-672.962147,0.00015068,2]
[419782216,1775376654061,-672.962147,0.00015068,2]
[419782217,1775376654071,-672.962147,0.00015068,2]
[419782218,1775376654081,-672.962147,0.00015068,2]
[419782219,1775376654091,-800.0,0.00015068,2]
[419782220,1775376654100,-150.0,0.00015071,2]
[419782221,1775376654110,-200.0,0.00015075,2]
[419782222,1775376654120,-1592.87721993,0.00015075,2]
[419782223,1775376654129,-194.72792766,0.00015075,2]
[419782224,1775376654139,-829.12830338,0.00015075,2]
[419782225,1775376654149,-200.0,0.00015075,2]
[419782226,1775376654158,-369.5568607,0.00015075,2]
[419782227,1775376654167,-150.0,0.00015081,2]
[419782228,1775376654177,-150.0,0.00015081,2]
[419782229,1775376654188,-150.0,0.00015083,2]
[419782230,1775376654198,-150.0,0.00015086,2]
[419782231,1775376654207,-500.0,0.00015086,2]
[419782232,1775376654216,-500.0,0.00015086,2]
[419782233,1775376654225,-150.0,0.00015096,2]
[419782234,1775376654235,-150.0,0.00015097,2]
[419782235,1775376654246,-150.0,0.00015104,2]
[419782236,1775376654255,-150.0,0.00015111,2]
[419782237,1775376654264,-150.0,0.00015111,2]
[419782238,1775376654273,-150.0,0.00015111,2]
[419782239,1775376654283,-485.0,0.00015117,2]
[419782240,1775376654292,-150.0,0.00015118,2]
[419782241,1775376654302,-150.0,0.00015123,2]
[419782242,1775376654311,-150.0,0.00015125,2]
[419782243,1775376654321,-500.0,0.0001514,2]
[419782244,1775376654330,-500.0,0.0001514,2]
[419782245,1775376654339,-500.0,0.0001514,2]
[419782246,1775376654349,-161.91170216,0.0001514,2]
[419782247,1775376654358,-500.0,0.0001514,2]
[419782248,1775376654368,-150.0,0.00015141,2]
[419782249,1775376654377,-150.0,0.00015141,2]
[419782250,1775376654387,-150.0,0.00015147,2]
[419782251,1775376654397,-150.0,0.00015148,2]
[419782252,1775376654406,-150.0,0.00015151,2]
[419782253,1775376654415,-150.0,0.00015165,2]
[419782254,1775376654424,-150.0,0.00015168,2]
[419782255,1775376654434,-150.0,0.0001517,2]
[419782256,1775376654443,-150.0,0.0001517,2]
[419782257,1775376654453,-150.0,0.00015174,2]
[419782258,1775376654462,-1800.0,0.00015178,2]
[419782259,1775376654471,-150.0,0.00015184,2]
[419782260,1775376654480,-332.258444,0.00015189,2]
[419782261,1775376654490,-332.258444,0.00015189,2]
[419782262,1775376654500,-332.258444,0.00015189,2]
[419782263,1775376654509,-332.258444,0.00015189,2]
[419782264,1775376654518,-553.958559,0.00015189,2]
[419782265,1775376654528,-553.958559,0.00015189,2]
[419782266,1775376654537,-553.958559,0.00015189,2]
[419782267,1775376654546,-553.958559,0.00015189,2]
[419782268,1775376654555,-150.0,0.00015189,2]
[419782269,1775376654565,-6733.22928325,0.000152,2]
[419782270,1775376654575,-5000.0,0.000152,2]
[419782271,1775376654584,-5000.0,0.000152,2]
[419782272,1775376654594,-5000.0,0.000152,2]
[419782273,1775376654603,-500.0,0.000152,2]
[419782274,1775376654612,-500.0,0.000152,2]
[419782275,1775376654621,-500.0,0.000152,2]
[419782276,1775376654630,-500.0,0.000152,2]
[419782277,1775376654640,-500.0,0.000152,2]
[419782278,1775376654649,-500.0,0.000152,2]
[419782279,1775376654659,-500.0,0.000152,2]
[419782280,1775376654668,-150.0,0.000152,2]
[419782281,1775376654678,-150.0,0.000152,2]
[419782282,1775376654687,-150.0,0.000152,2]
[419782283,1775376654697,-150.0,0.000152,2]
[419782284,1775376654706,-150.0,0.000152,2]
[419782285,1775376654715,-150.0,0.000152,2]
[419782286,1775376654725,-150.0,0.000152,2]
[419782287,1775376654734,-150.0,0.000152,2]
[419782288,1775376654743,-322.47111,0.000152,2]
[419782289,1775376654752,-485.0,0.00015204,2]
[419782290,1775376654762,-1048.98200346,0.00015205,2]
[419782291,1775376654771,-150.0,0.00015211,2]
[419782292,1775376654780,-150.0,0.00015216,2]
[419782293,1775376654790,-666.0,0.00015222,2]
[419782294,1775376654799,-5888.0,0.00015223,2]
[419782295,1775376654808,-150.0,0.00015226,2]
[419782296,1775376654817,-218.95175777,0.00015228,2]
[419782297,1775376654827,-150.0,0.0001523,2]
[419782298,1775376654836,-150.0,0.0001523,2]
[419782299,1775376654845,-150.0,0.00015232,2]
[419782300,1775376654854,-150.0,0.00015235,2]
[419782301,1775376654863,-150.0,0.00015249,2]
[419782302,1775376654873,-150.0,0.00015252,2]
[419782303,1775376654882,-150.0,0.00015253,2]
[419782304,1775376654892,-150.0,0.00015259,2]
[419782305,1775376654901,-150.0,0.00015259,2]
[419782306,1775376654910,-1048.98200346,0.0001526,2]
[419782307,1775376654919,-184.63661457,0.00015274,2]
[419782308,1775376654928,-150.0,0.00015275,2]
[419782309,1775376654938,-150.0,0.00015277,2]
[419782310,1775376654946,-500.13152132,0.0001528,2]
[419782311,1775376654955,-160.34417201,0.0001528,2]
[419782312,1775376654964,-500.0,0.0001528,2]
[419782313,1775376654974,-500.0,0.0001528,2]
[419782314,1775376654983,-150.0,0.00015282,2]
[419782315,1775376654992,-1000.0,0.00015284,2]
[419782316,1775376655001,-180.00096908,0.00015285,2]
[419782317,1775376655010,-150.0,0.00015289,2]
[419782318,1775376655019,-150.0,0.00015289,2]
[419782319,1775376655028,-150.0,0.00015289,2]
[419782320,1775376655037,-150.0,0.00015296,2]
[419782321,1775376655046,-1517.64,0.000153,2]
[419782322,1775376655056,-150.0,0.00015303,2]
[419782323,1775376655065,-150.0,0.00015304,2]
[419782324,1775376655074,-2152.0,0.00015305,5]
[419782325,1775376655084,-666.0,0.00015308,2]
[419782326,1775376655095,-500.0,0.00015309,2]
[419782327,1775376655104,-731.57,0.00015309,2]
[419782328,1775376655114,-1135.9,0.00015309,2]
[419782329,1775376655123,-1098.69,0.00015309,2]
[419782330,1775376655133,-674.6,0.00015309,2]
[419782331,1775376655142,-500.0,0.00015309,2]
[419782332,1775376655151,-500.0,0.00015309,2]
[419782333,1775376655161,-500.0,0.00015309,2]
[419782334,1775376655170,-485.0,0.0001531,2]
[419782335,1775376655180,-150.0,0.00015314,2]
[419782336,1775376655189,-1048.98200346,0.00015315,2]
[419782337,1775376655199,-666.0,0.00015315,2]
[419782338,1775376655208,-150.0,0.00015316,2]
[419782339,1775376655218,-150.0,0.00015317,2]
[419782340,1775376655227,-150.0,0.00015319,2]
[419782341,1775376655237,-150.0,0.00015319,2]
[419782342,1775376655246,-150.0,0.00015329,2]
[419782343,1775376655256,-150.0,0.00015339,2]
[419782344,1775376655267,-666.0,0.00015341,2]
[419782345,1775376655276,-2000.0,0.00015342,2]
[419782346,1775376655286,-2000.0,0.00015342,2]
[419782347,1775376655295,-693.24301277,0.00015342,2]
[419782348,1775376655305,-2000.0,0.00015342,2]
[419782349,1775376655314,-2000.0,0.00015342,2]
[419782350,1775376655323,-1189.37318328,0.00015342,2]
[419782351,1775376655333,-500.0,0.00015342,2]
[419782352,1775376655342,-502.36401508,0.00015342,2]
[419782353,1775376655352,-1000.0,0.00015342,2]
[419782354,1775376655361,-1500.0,0.00015342,2]
[419782355,1775376655370,-415.42400348,0.00015342,2]
[419782356,1775376655380,-2000.0,0.00015342,2]
[419782357,1775376655390,-1253.85680119,0.00015342,2]
[419782358,1775376655400,-2000.0,0.00015342,2]
[419782359,1775376655420,-2000.0,0.00015342,2]
[419782360,1775376655430,-2000.0,0.00015342,2]
[419782361,1775376655439,-1000.0,0.00015342,2]
[419782362,1775376655448,-2000.0,0.00015342,2]
[419782363,1775376655458,-2000.0,0.00015342,2]
[419782364,1775376655467,-150.0,0.00015347,2]
[419782365,1775376655477,-1613.0,0.00015348,2]
[419782366,1775376655486,-6453.0,0.00015348,2]
[419782367,1775376655496,-150.0,0.00015348,2]
[419782368,1775376655506,-150.0,0.00015348,2]
[419782369,1775376655515,-485.0,0.00015352,2]
[419782370,1775376655524,-2129.0,0.00015353,2]
[419782371,1775376655534,-150.0,0.00015355,2]
[419782372,1775376655543,-150.0,0.0001536,2]
[419782373,1775376655553,-1048.98200346,0.0001537,2]
[419782374,1775376655563,-150.0,0.00015374,2]
[419782375,1775376655573,-150.0,0.00015378,2]
[419782376,1775376655582,-150.0,0.00015378,2]
[419782377,1775376655592,-150.0,0.00015378,2]
[419782378,1775376655602,-150.0,0.0001538,2]
[419782379,1775376655611,-150.0,0.00015381,2]
[419782380,1775376655620,-150.0,0.00015381,2]
[419782381,1775376655630,-350.0,0.00015386,2]
[419782382,1775376655639,-512.60947705,0.000154,2]
[419782383,1775376655649,-150.0,0.00015403,2]
[419782384,1775376655659,-150.0,0.00015406,2]
[419782385,1775376655669,-150.0,0.00015407,2]
[419782386,1775376655679,-150.0,0.00015407,2]
[419782387,1775376655688,-1000.0,0.00015408,2]
[419782388,1775376655698,-150.0,0.00015412,2]
[419782389,1775376655708,-157.38626155,0.00015413,2]
[419782390,1775376655717,-1000.0,0.00015421,2]
[419782391,1775376655727,-150.0,0.00015424,2]
[419782392,1775376655736,-288.13653249,0.0001543,2]
[419782393,1775376655745,-1708.39284662,0.0001543,2]
[419782394,1775376655755,-150.0,0.00015432,2]
[419782395,1775376655765,-150.0,0.00015437,2]
[419782396,1775376655774,-150.0,0.00015437,2]
[419782397,1775376655783,-666.0,0.00015441,2]
[419782398,1775376655793,-150.0,0.00015443,2]
[419782399,1775376655802,-150.0,0.00015445,2]
[419782400,1775376655811,-150.0,0.00015445,2]
[419782401,1775376655821,-426.16759086,0.00015449,2]
[419782402,1775376655830,-1048.98200346,0.00015452,2]
[419782403,1775376655839,-150.0,0.00015458,2]
[419782404,1775376655954,-150.0,0.00015467,2]
[419782405,1775376655966,-150.0,0.00015467,2]
[419782406,1775376655975,-150.0,0.00015467,2]
[419782407,1775376655984,-150.0,0.00015467,2]
[419782408,1775376655993,-150.0,0.00015467,2]
[419782409,1775376656003,-15609.82,0.00015471,2]
[419782410,1775376656012,-150.0,0.00015478,2]
[419782411,1775376656021,-150.0,0.00015484,2]
[419782412,1775376656030,-150.0,0.00015488,2]
[419782413,1775376656040,-150.0,0.00015496,2]
[419782414,1775376656050,-150.0,0.00015496,2]
[419782415,1775376656059,-150.0,0.00015497,2]
[419782416,1775376656068,-167.9673,0.000155,2]
[419782417,1775376656077,-1661.34286454,0.000155,3]
[419782418,1775376656086,-5643.7200837,0.000155,3]
[419782419,1775376656095,-1231.52674065,0.000155,2]
[419782420,1775376656104,-1048.98200346,0.00015507,2]
[419782421,1775376656113,-150.0,0.00015509,2]
[419782422,1775376656122,-150.0,0.0001551,2]
[419782423,1775376656131,-150.0,0.0001551,2]
[419782424,1775376656140,-150.0,0.00015513,2]
[419782425,1775376656148,-1000.0,0.0001552,2]
[419782426,1775376656159,-150.0,0.00015526,2]
[419782427,1775376656169,-150.0,0.00015526,2]
[419782428,1775376656180,-150.0,0.00015531,2]
[419782429,1775376656189,-150.0,0.00015535,2]
[419782430,1775376656198,-150.0,0.00015543,2]
[419782431,1775376656208,-150.0,0.00015552,2]
[419782432,1775376656217,-150.0,0.00015556,2]
[419782433,1775376656226,-150.0,0.00015556,2]
[419782434,1775376656238,-150.0,0.00015556,2]
[419782435,1775376656249,-350.0,0.00015559,2]
[419782436,1775376656258,-150.0,0.00015561,2]
[419782437,1775376656267,-1048.98200346,0.00015562,2]
[419782438,1775376656277,-243.30922088,0.00015571,2]
[419782439,1775376656286,-150.0,0.00015573,2]
[419782440,1775376656295,-150.0,0.00015576,2]
[419782441,1775376656304,-150.0,0.00015583,2]
[419782442,1775376656314,-150.0,0.00015585,2]
[419782443,1775376656323,-150.0,0.00015585,2]
[419782444,1775376656332,-150.0,0.00015587,2]
[419782445,1775376656341,-150.0,0.00015595,2]
[419782446,1775376656350,-427.00983483,0.00015595,2]
[419782447,1775376656360,-150.0,0.000156,2]
[419782448,1775376656369,-167.9673,0.000156,2]
[419782449,1775376656379,-200.0,0.000156,5]
[419782450,1775376656388,-38258.22545168,0.00015604,2]
[419782451,1775376656397,-150.0,0.00015608,2]
[419782452,1775376656407,-150.0,0.00015613,2]
[419782453,1775376656416,-1075.30816146,0.00015613,2]
[419782454,1775376656425,-1125.12054769,0.00015613,2]
[419782455,1775376656434,-1105.6473675,0.00015613,2]
[419782456,1775376656443,-1115.03458957,0.00015613,2]
[419782457,1775376656452,-1026.18083306,0.00015613,2]
[419782458,1775376656462,-1053.32276534,0.00015613,2]
[419782459,1775376656471,-1010.20736952,0.00015613,2]
[419782460,1775376656480,-1129.0999064,0.00015613,2]
[419782461,1775376656489,-150.0,0.00015615,2]
[419782462,1775376656499,-150.0,0.00015615,2]
[419782463,1775376656508,-150.0,0.00015616,2]
[419782464,1775376656518,-1048.98200346,0.00015616,2]
[419782465,1775376656527,-5888.0,0.00015621,2]
[419782466,1775376656536,-200.0,0.00015623,2]
[419782467,1775376656545,-1651.81367706,0.00015623,2]
[419782468,1775376656554,-201.93286099,0.00015623,2]
[419782469,1775376656563,-859.80605061,0.00015623,2]